{"text_format":"1","workbook":"xlsx","n_sheets":3,"sheets":["Справочник","Договор","Лист3"],"not_rendered":{"charts":0,"images":0,"macros":0,"external_links":0,"defined_names":0,"comments":0,"pivot_tables":0},"unopened":[],"bounds":{"document_bytes":16777216,"sheet_cells":100000,"rows_first":2000,"rows_last":500,"rows_between":2000,"halvings":0,"cell_chars":16384,"cell_head_chars":4096},"cells_cut":0,"cells_raw":0,"read":"whole","date_system":"1900"}

{"sheet":"Справочник","index":0,"n_rows":47,"n_cols":4,"rows_kept":47,"cut":false,"hidden":false,"merged":[]}
[true,"Разовый договор","Разовый договор","Абонентский договор"]
[true,"Абонентский договор","1. ПРЕДМЕТ  ДОГОВОРА, СРОК ДЕЙСТВИЯ ДОГОВОРА","1. ПРЕДМЕТ  ДОГОВОРА, СРОК ДЕЙСТВИЯ ДОГОВОРА"]
[false,"Юрлицо","1.1.  Заказчик поручает, а Исполнитель принимает на себя обязательства по обслуживанию оборудования системы видеонаблюдения и кабельных сетей системы видеонаблюдения (далее по тексту - Система).","1.1.  Заказчик поручает, а Исполнитель принимает на себя обязательства по техническому обслуживанию/ремонт оборудования системы видеонаблюдения (далее по тексту - Система) по требованию Заказчика. "]
[true,"Физлицо","1.2. Оборудование установлено по адресу: ","1.2. Под техническим обслуживанием/ремонтом Системы понимается комплекс организационно-технических мероприятий и работ по поддержанию работоспособности или исправности Системы в процессе технической эксплуатации."]
[null,null,"1.3. Под техническим обслуживанием Системы понимается комплекс организационно-технических мероприятий и работ, производимых на объекте и направленных на поддержание в рабочем или исправном состоянии системы видеонаблюдения в процессе ее использования по назначению с целью повышения надежности и эффективности ее работы. Перечень работ по техническому обслуживанию системы видеонаблюдения содержится в Приложении №2, которое является неотъемлемой частью настоящего договора.","2. СТОИМОСТЬ РАБОТ И УСЛОВИЯ ОПЛАТЫ"]
[null,null,"1.4. Перечень работ, подлежащих исполнению в рамках настоящего договора, заполняется Исполнителем по мере выполнения таких работ, и принимается представителем Заказчика, согласно Приложению №3 – «Журнал регистрации работ по техническому обслуживанию и ремонту системы видеонаблюдения».   ","2.1. Стоимость разового технического обслуживания / ремонта по требованию Заказчика составляет 0 ( ноль рублей)  на весь период действия настоящего договора. Заказчик обязуется внести в кассу Исполнитля или перевести на расчетный счет оплату в размере 100% (сто процентов) от стоимости Договора в течение 2 (двух) дней после выполнения работ по техническому обслуживанию/ремонту оборудования системы видеонаблюдения."]
[null,null,"2. СТОИМОСТЬ РАБОТ И УСЛОВИЯ ОПЛАТЫ","2.2. Заказчик принимает на себя обязательства по оплате дополнительно к стоимости выезда представителя Исполнителя по требованию, замену узлов и агрегатов системы видеонаблюдения, если это необходимо для поддержания в рабочем или исправном состоянии системы видеонаблюдения Заказчика."]
[null,null,"2.1. Абонентская плата по договору на весь срок его действия составляет _______________ (________________) рублей 00 коп. за один календарный месяц (квартал, полугодие, год). (НДС – не предусмотрен). ","3. ПРАВА И ОБЯЗАННОСТИ СТОРОН"]
[null,null,"2.2. Абонентская плата вносится Заказчиком путем безналичного перечисления денежных средств на расчетный счет Исполнителя.","3.1. Любые монтажные работы, связанные с переносом или дополнительным монтажом оборудования или кабельных линий, оплачиваются Заказчиком отдельно на основании заключения дополнительных договоров и соглашений."]
[null,null,"2.3. Порядок оплаты: оплата услуг Исполнителя производится за счет средств, полученных от приносящей доход деятельности, в течение 30 (Тридцати) банковских дней с момента подписания акта выполненных работ.","3.2. Исполнитель не несет ответственности за сбои в работе Системы, вызванные отключением питания, или иными неполадками, связанными с ошибками при эксплуатации системы видеонаблюдения, возникшими со стороны Заказчика или –  третьих лиц."]
[null,null,"2.4. Стоимость работ включает в себя транспортные расходы, уплату таможенных пошлин, налогов, сборов, других обязательных платежей, т.е. является конечной.","4. ОТВЕТСТВЕННОСТЬ СТОРОН"]
[null,null,"2.5. На протяжении всего срока действия настоящего Договора Исполнитель не вправе вносить какие-либо изменения в п. 2 настоящего договора.","4.1. Исполнитель и Заказчик не вправе передавать свои обязанности по Договору третьей стороне без предварительного письменного согласия второго участника настоящего договора."]
[null,null,"2.6. Работы (товары, услуги), не включенные в Приложение №2, оплачиваются Заказчиком отдельно на основании заключения дополнительных договоров и соглашений, подписываемых обеими Сторонами. ","4.2. За неисполнение или ненадлежащее исполнение обязательств по настоящему договору стороны несут ответственность в соответствии с действующим законодательством."]
[null,null,"3. ПРАВА И ОБЯЗАННОСТИ СТОРОН","4.3. Исполнитель несет ответственность за качество выполненной работы в соответствии с российским законодательством."]
[null,null," 3.1. Исполнитель обязуется не реже одного раза в 6 (Шесть) месяцев проводить плановое техническое обслуживание Системы, вносить изменения в алгоритм работы по желанию Заказчика, консультировать Заказчика по вопросам работы с системой видеонаблюдения и сопряженным с ней оборудованием и обеспечением.","5. ПОРЯДОК РАЗРЕШЕНИЯ СПОРОВ"]
[null,null,"3.2. Заказчик имеет право экстренного (внепланового) вызова Исполнителя для осуществления работ по техническому обслуживанию системы. При этом Исполнитель обязуется прибыть по указанному в Договоре адресу в течение 24 часов с момента поступления заявки и устранить сбой, если не требуется замена элементов системы видеонаблюдения или какого-либо дополнительного оборудования или элементов кабельной сети.","5.1. Все споры по настоящему Договору разрешаются путем переговоров между Сторонами."]
[null,null,"3.3. Любые монтажные работы, связанные с переносом или дополнительным монтажом оборудования или кабельных линий, а так же устранение неисправностей оборудования, возникших в результате действий Заказчика или третьих лиц, оплачиваются Заказчиком отдельно на основании заключения дополнительных договоров и соглашений, подписываемых обеими Сторонами.","5.2. В случае возникновения разногласий между Сторонами, любая из сторон вправе направить мотивированное обращение другой стороне о рассмотрении требований либо предложений."]
[null,null,"3.4. Исполнитель не несет ответственности за сбои в работе Системы,   вызванные отключением питания, или иными неполадками, связанными с ошибками при эксплуатации системы видеонаблюдения, возникшими со стороны Заказчика или – третьих лиц.","5.3. В случае не достижения Сторонами согласия, спор рассматривается в Арбитражном суде Оренбургской области."]
[null,null,"4. ПРАВА ЗАКАЗЧИКА ВО ВРЕМЯ ВЫПОЛНЕНИЯ РАБОТ ИСПОЛНИТЕЛЕМ","6. СРОК ДЕЙСТВИЯ ДОГОВОРА"]
[null,null,"4.1. Заказчик вправе во всякое время проверять ход и качество работы, выполняемой Исполнителем, не вмешиваясь в его деятельность.","6.1. Договор вступает в силу с момента его подписания."]
[null,null,"4.2. Если Исполнитель не приступает своевременно к исполнению настоящего договора или выполняет работу настолько медленно, что окончание ее к сроку становится явно невозможным, Заказчик вправе отказаться от исполнения договора и потребовать возмещения убытков.","6.2. Срок действия настоящего договора: до конца исполнения обязательств."]
[null,null,"4.3. Если во время выполнения работы станет очевидным, что она не будет выполнена надлежащим образом, Заказчик вправе назначить Исполнителю разумный срок для устранения недостатков и при неисполнении Исполнителем в назначенный срок этого требования отказаться от настоящего договора либо поручить исправление работ другому лицу за счет Исполнителя, а также потребовать возмещения убытков.","7. ФОРС-МАЖОР"]
[null,null,"4.4. В соответствии со статьей 717 Гражданского кодекса Российской Федерации Заказчик может в любое время до сдачи ему результата работы отказаться от исполнения настоящего договора, выплатив Исполнителю часть установленной цены пропорционально части работы, выполненной до получения извещения об отказе Заказчика от исполнения договора. Заказчик также обязан возместить Исполнителю убытки, причиненные прекращением настоящего договора, в пределах разницы между ценой, определенной за всю работу, и частью цены, выплаченной за выполненную работу.","7.1. Стороны договорились и отнесли к обстоятельствам форс-мажора следующие события: пожар, военные действия, стихийные и иные бедствия, происходящие в районах, официально признанных таковыми, а также действия Правительства, запрещающие деятельность, включающую в себя предмет Договора."]
[null,null,"5. ОТВЕТСТВЕННОСТЬ СТОРОН","7.2. О наступлении и прекращении форс-мажорных обстоятельств, предполагаемых сроках их действия Сторона, для которой создались такие обстоятельства, немедленно извещает другую Сторону в письменном виде за подписью уполномоченных на это лиц.\n"]
[null,null," 5.1. Исполнитель и Заказчик не вправе передавать свои обязанности по Договору третьей стороне без предварительного письменного согласия второго участника настоящего договора.","7.3. При прекращении форс-мажорных обстоятельств, Стороны обязаны восстановить исполнение обязательств по Договору. Прекращение форс-мажорных обстоятельств должно быть подтверждено органом, подтвердившим их наступление."]
[null,null,"5.2. Исполнитель не несет финансовой ответственности за выход из строя оборудования при невыполнении Заказчиком условий п.5.1. настоящего Договора или неквалифицированных действий третьих лиц.","8. КОНФИДЕНЦИАЛЬНОСТЬ"]
[null,null,"5.3. В случае существенного нарушения одной из сторон условий Договора другая Сторона вправе расторгнуть данный Договор в одностороннем порядке.","8.1. Стороны рассматривают всю информацию, имеющую отношение к данному Договору и исполнению, как конфиденциальную и обязуются не знакомить с нею третьих лиц без письменного на то согласования обеих Сторон. При получении такого согласования, ознакомление третьих лиц с содержимым Договора возможно только в части, касающейся этих третьих лиц."]
[null,null,"5.4. В случае невыполнения Исполнителем надлежащим образом своих обязательств в сроки, предусмотренные настоящим договором, Исполнитель выплачивает неустойку в размере 0,1 %  от стоимости работ по настоящему договору за каждый день просрочки работ. "]
[null,null,"5.5. Выплата штрафных санкций, установленных настоящим договором, не освобождает сторону от выполнения принятых на себя обязательств."]
[null,null,"5.6. За неисполнение или ненадлежащее исполнение обязательств по настоящему договору стороны несут ответственность в соответствии с действующим законодательством."]
[null,null,"5.7. Риск случайной гибели или случайного повреждения материалов и/или оборудования, закупленных Исполнителем для выполнения работ по настоящему договору, несет Исполнитель."]
[null,null,"5.8. Риск случайной гибели или случайного повреждения результата выполненной работы до ее приемки Заказчиком несет Исполнитель."]
[null,null,"5.9. Проверка качества выполненной работы производится Заказчиком при ее сдаче-приемке и фиксируется в Приложении №3 – «Журнал регистрации работ по техническому обслуживанию и ремонту системы видеонаблюдения», подписываемом представителями Заказчика и Исполнителя. "]
[null,null,"5.10. Исполнитель несет ответственность за качество выполненной работы в соответствии с российским законодательством."]
[null,null,"6. ПОРЯДОК РАЗРЕШЕНИЯ СПОРОВ"]
[null,null," 6.1. Все споры по настоящему Договору разрешаются путем переговоров между Сторонами."]
[null,null,"6.2. В случае возникновения разногласий между Сторонами, любая из сторон вправе направить мотивированное обращение другой стороне о рассмотрении требований либо предло6ений."]
[null,null,"6.3. В случае не достижения Сторонами согласия спор рассматривается в Арбитражном суде Оренбургской области."]
[null,null,"7. СРОК ДЕЙСТВИЯ ДОГОВОРА"]
[null,null,"7.1. Договор вступает в силу с момента его подписания."]
[null,null,"7.2. Срок действия настоящего договора: с «01» января 2016 г. по «30» июня 2016 г."]
[null,null,"8. ФОРС-МАЖОР"]
[null,null,"8.1. Стороны договорились и отнесли к обстоятельствам форс-мажора следующие события: пожар, военные действия, стихийные и иные бедствия, происходящие в районах, официально признанных таковыми, а также действия Правительства, запрещающие деятельность, включающую в себя предмет Договора."]
[null,null,"8.2. О наступлении и прекращении форс-мажорных обстоятельств, предполагаемых сроках их действия Сторона, для которой создались такие обстоятельства, немедленно извещает другую Сторону в письменном виде за подписью уполномоченных на это лиц."]
[null,null,"8.3. При прекращении форс-мажорных обстоятельств, Стороны обязаны восстановить исполнение обязательств по Договору. Прекращение форс-мажорных обстоятельств должно быть подтверждено органом, подтвердившим их наступление."]
[null,null,"9. КОНФИДЕНЦИАЛЬНОСТЬ"]
[null,null," 9.1. Стороны рассматривают всю информацию, имеющую отношение к данному Договору и исполнению, как конфиденциальную и обязуются не знакомить с нею третьих лиц без письменного на то согласования обеих Сторон. При получении такого согласования, ознакомление третьих лиц с содержимым Договора возможно только в части, касающейся этих третьих лиц."]

{"sheet":"Договор","index":1,"n_rows":61,"n_cols":1,"rows_kept":61,"cut":false,"hidden":false,"merged":[]}
[]
[]
[]
[]
[]
[]
[]
[]
[]
[]
[{"$f":"IFERROR(HLOOKUP(VLOOKUP(TRUE,Справочник!$A$1:$B$2,2,FALSE),Справочник!C:D,ROW(A1)+1,FALSE),\"Выберите стороны договора\")","v":"1. ПРЕДМЕТ  ДОГОВОРА, СРОК ДЕЙСТВИЯ ДОГОВОРА"}]
[{"$f":"IFERROR(HLOOKUP(VLOOKUP(TRUE,Справочник!$A$1:$B$2,2,FALSE),Справочник!C:D,ROW(A2)+1,FALSE),\"Выберите стороны договора\")","v":"1.1.  Заказчик поручает, а Исполнитель принимает на себя обязательства по обслуживанию оборудования системы видеонаблюдения и кабельных сетей системы видеонаблюдения (далее по тексту - Система)."}]
[{"$f":"IFERROR(HLOOKUP(VLOOKUP(TRUE,Справочник!$A$1:$B$2,2,FALSE),Справочник!C:D,ROW(A3)+1,FALSE),\"Выберите стороны договора\")","v":"1.2. Оборудование установлено по адресу: "}]
[{"$f":"IFERROR(HLOOKUP(VLOOKUP(TRUE,Справочник!$A$1:$B$2,2,FALSE),Справочник!C:D,ROW(A4)+1,FALSE),\"Выберите стороны договора\")","v":"1.3. Под техническим обслуживанием Системы понимается комплекс организационно-технических мероприятий и работ, производимых на объекте и направленных на поддержание в рабочем или исправном состоянии системы видеонаблюдения в процессе ее использования по назначению с целью повышения надежности и эффективности ее работы. Перечень работ по техническому обслуживанию системы видеонаблюдения содержится в Приложении №2, которое является неотъемлемой частью настоящего договора."}]
[{"$f":"IFERROR(HLOOKUP(VLOOKUP(TRUE,Справочник!$A$1:$B$2,2,FALSE),Справочник!C:D,ROW(A5)+1,FALSE),\"Выберите стороны договора\")","v":"1.4. Перечень работ, подлежащих исполнению в рамках настоящего договора, заполняется Исполнителем по мере выполнения таких работ, и принимается представителем Заказчика, согласно Приложению №3 – «Журнал регистрации работ по техническому обслуживанию и ремонту системы видеонаблюдения».   "}]
[{"$f":"IFERROR(HLOOKUP(VLOOKUP(TRUE,Справочник!$A$1:$B$2,2,FALSE),Справочник!C:D,ROW(A6)+1,FALSE),\"Выберите стороны договора\")","v":"2. СТОИМОСТЬ РАБОТ И УСЛОВИЯ ОПЛАТЫ"}]
[{"$f":"IFERROR(HLOOKUP(VLOOKUP(TRUE,Справочник!$A$1:$B$2,2,FALSE),Справочник!C:D,ROW(A7)+1,FALSE),\"Выберите стороны договора\")","v":"2.1. Абонентская плата по договору на весь срок его действия составляет _______________ (________________) рублей 00 коп. за один календарный месяц (квартал, полугодие, год). (НДС – не предусмотрен). "}]
[{"$f":"IFERROR(HLOOKUP(VLOOKUP(TRUE,Справочник!$A$1:$B$2,2,FALSE),Справочник!C:D,ROW(A8)+1,FALSE),\"Выберите стороны договора\")","v":"2.2. Абонентская плата вносится Заказчиком путем безналичного перечисления денежных средств на расчетный счет Исполнителя."}]
[{"$f":"IFERROR(HLOOKUP(VLOOKUP(TRUE,Справочник!$A$1:$B$2,2,FALSE),Справочник!C:D,ROW(A9)+1,FALSE),\"Выберите стороны договора\")","v":"2.3. Порядок оплаты: оплата услуг Исполнителя производится за счет средств, полученных от приносящей доход деятельности, в течение 30 (Тридцати) банковских дней с момента подписания акта выполненных работ."}]
[{"$f":"IFERROR(HLOOKUP(VLOOKUP(TRUE,Справочник!$A$1:$B$2,2,FALSE),Справочник!C:D,ROW(A10)+1,FALSE),\"Выберите стороны договора\")","v":"2.4. Стоимость работ включает в себя транспортные расходы, уплату таможенных пошлин, налогов, сборов, других обязательных платежей, т.е. является конечной."}]
[{"$f":"IFERROR(HLOOKUP(VLOOKUP(TRUE,Справочник!$A$1:$B$2,2,FALSE),Справочник!C:D,ROW(A11)+1,FALSE),\"Выберите стороны договора\")","v":"2.5. На протяжении всего срока действия настоящего Договора Исполнитель не вправе вносить какие-либо изменения в п. 2 настоящего договора."}]
[{"$f":"IFERROR(HLOOKUP(VLOOKUP(TRUE,Справочник!$A$1:$B$2,2,FALSE),Справочник!C:D,ROW(A12)+1,FALSE),\"Выберите стороны договора\")","v":"2.6. Работы (товары, услуги), не включенные в Приложение №2, оплачиваются Заказчиком отдельно на основании заключения дополнительных договоров и соглашений, подписываемых обеими Сторонами. "}]
[{"$f":"IFERROR(HLOOKUP(VLOOKUP(TRUE,Справочник!$A$1:$B$2,2,FALSE),Справочник!C:D,ROW(A13)+1,FALSE),\"Выберите стороны договора\")","v":"3. ПРАВА И ОБЯЗАННОСТИ СТОРОН"}]
[{"$f":"IFERROR(HLOOKUP(VLOOKUP(TRUE,Справочник!$A$1:$B$2,2,FALSE),Справочник!C:D,ROW(A14)+1,FALSE),\"Выберите стороны договора\")","v":" 3.1. Исполнитель обязуется не реже одного раза в 6 (Шесть) месяцев проводить плановое техническое обслуживание Системы, вносить изменения в алгоритм работы по желанию Заказчика, консультировать Заказчика по вопросам работы с системой видеонаблюдения и сопряженным с ней оборудованием и обеспечением."}]
[{"$f":"IFERROR(HLOOKUP(VLOOKUP(TRUE,Справочник!$A$1:$B$2,2,FALSE),Справочник!C:D,ROW(A15)+1,FALSE),\"Выберите стороны договора\")","v":"3.2. Заказчик имеет право экстренного (внепланового) вызова Исполнителя для осуществления работ по техническому обслуживанию системы. При этом Исполнитель обязуется прибыть по указанному в Договоре адресу в течение 24 часов с момента поступления заявки и устранить сбой, если не требуется замена элементов системы видеонаблюдения или какого-либо дополнительного оборудования или элементов кабельной сети."}]
[{"$f":"IFERROR(HLOOKUP(VLOOKUP(TRUE,Справочник!$A$1:$B$2,2,FALSE),Справочник!C:D,ROW(A16)+1,FALSE),\"Выберите стороны договора\")","v":"3.3. Любые монтажные работы, связанные с переносом или дополнительным монтажом оборудования или кабельных линий, а так же устранение неисправностей оборудования, возникших в результате действий Заказчика или третьих лиц, оплачиваются Заказчиком отдельно на основании заключения дополнительных договоров и соглашений, подписываемых обеими Сторонами."}]
[{"$f":"IFERROR(HLOOKUP(VLOOKUP(TRUE,Справочник!$A$1:$B$2,2,FALSE),Справочник!C:D,ROW(A17)+1,FALSE),\"Выберите стороны договора\")","v":"3.4. Исполнитель не несет ответственности за сбои в работе Системы,   вызванные отключением питания, или иными неполадками, связанными с ошибками при эксплуатации системы видеонаблюдения, возникшими со стороны Заказчика или – третьих лиц."}]
[{"$f":"IFERROR(HLOOKUP(VLOOKUP(TRUE,Справочник!$A$1:$B$2,2,FALSE),Справочник!C:D,ROW(A18)+1,FALSE),\"Выберите стороны договора\")","v":"4. ПРАВА ЗАКАЗЧИКА ВО ВРЕМЯ ВЫПОЛНЕНИЯ РАБОТ ИСПОЛНИТЕЛЕМ"}]
[{"$f":"IFERROR(HLOOKUP(VLOOKUP(TRUE,Справочник!$A$1:$B$2,2,FALSE),Справочник!C:D,ROW(A19)+1,FALSE),\"Выберите стороны договора\")","v":"4.1. Заказчик вправе во всякое время проверять ход и качество работы, выполняемой Исполнителем, не вмешиваясь в его деятельность."}]
[{"$f":"IFERROR(HLOOKUP(VLOOKUP(TRUE,Справочник!$A$1:$B$2,2,FALSE),Справочник!C:D,ROW(A20)+1,FALSE),\"Выберите стороны договора\")","v":"4.2. Если Исполнитель не приступает своевременно к исполнению настоящего договора или выполняет работу настолько медленно, что окончание ее к сроку становится явно невозможным, Заказчик вправе отказаться от исполнения договора и потребовать возмещения убытков."}]
[{"$f":"IFERROR(HLOOKUP(VLOOKUP(TRUE,Справочник!$A$1:$B$2,2,FALSE),Справочник!C:D,ROW(A21)+1,FALSE),\"Выберите стороны договора\")","v":"4.3. Если во время выполнения работы станет очевидным, что она не будет выполнена надлежащим образом, Заказчик вправе назначить Исполнителю разумный срок для устранения недостатков и при неисполнении Исполнителем в назначенный срок этого требования отказаться от настоящего договора либо поручить исправление работ другому лицу за счет Исполнителя, а также потребовать возмещения убытков."}]
[{"$f":"IFERROR(HLOOKUP(VLOOKUP(TRUE,Справочник!$A$1:$B$2,2,FALSE),Справочник!C:D,ROW(A22)+1,FALSE),\"Выберите стороны договора\")","v":"4.4. В соответствии со статьей 717 Гражданского кодекса Российской Федерации Заказчик может в любое время до сдачи ему результата работы отказаться от исполнения настоящего договора, выплатив Исполнителю часть установленной цены пропорционально части работы, выполненной до получения извещения об отказе Заказчика от исполнения договора. Заказчик также обязан возместить Исполнителю убытки, причиненные прекращением настоящего договора, в пределах разницы между ценой, определенной за всю работу, и частью цены, выплаченной за выполненную работу."}]
[{"$f":"IFERROR(HLOOKUP(VLOOKUP(TRUE,Справочник!$A$1:$B$2,2,FALSE),Справочник!C:D,ROW(A23)+1,FALSE),\"Выберите стороны договора\")","v":"5. ОТВЕТСТВЕННОСТЬ СТОРОН"}]
[{"$f":"IFERROR(HLOOKUP(VLOOKUP(TRUE,Справочник!$A$1:$B$2,2,FALSE),Справочник!C:D,ROW(A24)+1,FALSE),\"Выберите стороны договора\")","v":" 5.1. Исполнитель и Заказчик не вправе передавать свои обязанности по Договору третьей стороне без предварительного письменного согласия второго участника настоящего договора."}]
[{"$f":"IFERROR(HLOOKUP(VLOOKUP(TRUE,Справочник!$A$1:$B$2,2,FALSE),Справочник!C:D,ROW(A25)+1,FALSE),\"Выберите стороны договора\")","v":"5.2. Исполнитель не несет финансовой ответственности за выход из строя оборудования при невыполнении Заказчиком условий п.5.1. настоящего Договора или неквалифицированных действий третьих лиц."}]
[{"$f":"IFERROR(HLOOKUP(VLOOKUP(TRUE,Справочник!$A$1:$B$2,2,FALSE),Справочник!C:D,ROW(A26)+1,FALSE),\"Выберите стороны договора\")","v":"5.3. В случае существенного нарушения одной из сторон условий Договора другая Сторона вправе расторгнуть данный Договор в одностороннем порядке."}]
[{"$f":"IFERROR(HLOOKUP(VLOOKUP(TRUE,Справочник!$A$1:$B$2,2,FALSE),Справочник!C:D,ROW(A27)+1,FALSE),\"Выберите стороны договора\")","v":"5.4. В случае невыполнения Исполнителем надлежащим образом своих обязательств в сроки, предусмотренные настоящим договором, Исполнитель выплачивает неустойку в размере 0,1 %  от стоимости работ по настоящему договору за каждый день просрочки работ. "}]
[{"$f":"IFERROR(HLOOKUP(VLOOKUP(TRUE,Справочник!$A$1:$B$2,2,FALSE),Справочник!C:D,ROW(A28)+1,FALSE),\"Выберите стороны договора\")","v":"5.5. Выплата штрафных санкций, установленных настоящим договором, не освобождает сторону от выполнения принятых на себя обязательств."}]
[{"$f":"IFERROR(HLOOKUP(VLOOKUP(TRUE,Справочник!$A$1:$B$2,2,FALSE),Справочник!C:D,ROW(A29)+1,FALSE),\"Выберите стороны договора\")","v":"5.6. За неисполнение или ненадлежащее исполнение обязательств по настоящему договору стороны несут ответственность в соответствии с действующим законодательством."}]
[{"$f":"IFERROR(HLOOKUP(VLOOKUP(TRUE,Справочник!$A$1:$B$2,2,FALSE),Справочник!C:D,ROW(A30)+1,FALSE),\"Выберите стороны договора\")","v":"5.7. Риск случайной гибели или случайного повреждения материалов и/или оборудования, закупленных Исполнителем для выполнения работ по настоящему договору, несет Исполнитель."}]
[{"$f":"IFERROR(HLOOKUP(VLOOKUP(TRUE,Справочник!$A$1:$B$2,2,FALSE),Справочник!C:D,ROW(A31)+1,FALSE),\"Выберите стороны договора\")","v":"5.8. Риск случайной гибели или случайного повреждения результата выполненной работы до ее приемки Заказчиком несет Исполнитель."}]
[{"$f":"IFERROR(HLOOKUP(VLOOKUP(TRUE,Справочник!$A$1:$B$2,2,FALSE),Справочник!C:D,ROW(A32)+1,FALSE),\"Выберите стороны договора\")","v":"5.9. Проверка качества выполненной работы производится Заказчиком при ее сдаче-приемке и фиксируется в Приложении №3 – «Журнал регистрации работ по техническому обслуживанию и ремонту системы видеонаблюдения», подписываемом представителями Заказчика и Исполнителя. "}]
[{"$f":"IFERROR(HLOOKUP(VLOOKUP(TRUE,Справочник!$A$1:$B$2,2,FALSE),Справочник!C:D,ROW(A33)+1,FALSE),\"Выберите стороны договора\")","v":"5.10. Исполнитель несет ответственность за качество выполненной работы в соответствии с российским законодательством."}]
[{"$f":"IFERROR(HLOOKUP(VLOOKUP(TRUE,Справочник!$A$1:$B$2,2,FALSE),Справочник!C:D,ROW(A34)+1,FALSE),\"Выберите стороны договора\")","v":"6. ПОРЯДОК РАЗРЕШЕНИЯ СПОРОВ"}]
[{"$f":"IFERROR(HLOOKUP(VLOOKUP(TRUE,Справочник!$A$1:$B$2,2,FALSE),Справочник!C:D,ROW(A35)+1,FALSE),\"Выберите стороны договора\")","v":" 6.1. Все споры по настоящему Договору разрешаются путем переговоров между Сторонами."}]
[{"$f":"IFERROR(HLOOKUP(VLOOKUP(TRUE,Справочник!$A$1:$B$2,2,FALSE),Справочник!C:D,ROW(A36)+1,FALSE),\"Выберите стороны договора\")","v":"6.2. В случае возникновения разногласий между Сторонами, любая из сторон вправе направить мотивированное обращение другой стороне о рассмотрении требований либо предло6ений."}]
[{"$f":"IFERROR(HLOOKUP(VLOOKUP(TRUE,Справочник!$A$1:$B$2,2,FALSE),Справочник!C:D,ROW(A37)+1,FALSE),\"Выберите стороны договора\")","v":"6.3. В случае не достижения Сторонами согласия спор рассматривается в Арбитражном суде Оренбургской области."}]
[{"$f":"IFERROR(HLOOKUP(VLOOKUP(TRUE,Справочник!$A$1:$B$2,2,FALSE),Справочник!C:D,ROW(A38)+1,FALSE),\"Выберите стороны договора\")","v":"7. СРОК ДЕЙСТВИЯ ДОГОВОРА"}]
[{"$f":"IFERROR(HLOOKUP(VLOOKUP(TRUE,Справочник!$A$1:$B$2,2,FALSE),Справочник!C:D,ROW(A39)+1,FALSE),\"Выберите стороны договора\")","v":"7.1. Договор вступает в силу с момента его подписания."}]
[{"$f":"IFERROR(HLOOKUP(VLOOKUP(TRUE,Справочник!$A$1:$B$2,2,FALSE),Справочник!C:D,ROW(A40)+1,FALSE),\"Выберите стороны договора\")","v":"7.2. Срок действия настоящего договора: с «01» января 2016 г. по «30» июня 2016 г."}]
[{"$f":"IFERROR(HLOOKUP(VLOOKUP(TRUE,Справочник!$A$1:$B$2,2,FALSE),Справочник!C:D,ROW(A41)+1,FALSE),\"Выберите стороны договора\")","v":"8. ФОРС-МАЖОР"}]
[{"$f":"IFERROR(HLOOKUP(VLOOKUP(TRUE,Справочник!$A$1:$B$2,2,FALSE),Справочник!C:D,ROW(A42)+1,FALSE),\"Выберите стороны договора\")","v":"8.1. Стороны договорились и отнесли к обстоятельствам форс-мажора следующие события: пожар, военные действия, стихийные и иные бедствия, происходящие в районах, официально признанных таковыми, а также действия Правительства, запрещающие деятельность, включающую в себя предмет Договора."}]
[{"$f":"IFERROR(HLOOKUP(VLOOKUP(TRUE,Справочник!$A$1:$B$2,2,FALSE),Справочник!C:D,ROW(A43)+1,FALSE),\"Выберите стороны договора\")","v":"8.2. О наступлении и прекращении форс-мажорных обстоятельств, предполагаемых сроках их действия Сторона, для которой создались такие обстоятельства, немедленно извещает другую Сторону в письменном виде за подписью уполномоченных на это лиц."}]
[{"$f":"IFERROR(HLOOKUP(VLOOKUP(TRUE,Справочник!$A$1:$B$2,2,FALSE),Справочник!C:D,ROW(A44)+1,FALSE),\"Выберите стороны договора\")","v":"8.3. При прекращении форс-мажорных обстоятельств, Стороны обязаны восстановить исполнение обязательств по Договору. Прекращение форс-мажорных обстоятельств должно быть подтверждено органом, подтвердившим их наступление."}]
[{"$f":"IFERROR(HLOOKUP(VLOOKUP(TRUE,Справочник!$A$1:$B$2,2,FALSE),Справочник!C:D,ROW(A45)+1,FALSE),\"Выберите стороны договора\")","v":"9. КОНФИДЕНЦИАЛЬНОСТЬ"}]
[{"$f":"IFERROR(HLOOKUP(VLOOKUP(TRUE,Справочник!$A$1:$B$2,2,FALSE),Справочник!C:D,ROW(A46)+1,FALSE),\"Выберите стороны договора\")","v":" 9.1. Стороны рассматривают всю информацию, имеющую отношение к данному Договору и исполнению, как конфиденциальную и обязуются не знакомить с нею третьих лиц без письменного на то согласования обеих Сторон. При получении такого согласования, ознакомление третьих лиц с содержимым Договора возможно только в части, касающейся этих третьих лиц."}]
[{"$f":"IFERROR(HLOOKUP(VLOOKUP(TRUE,Справочник!$A$1:$B$2,2,FALSE),Справочник!C:D,ROW(A47)+1,FALSE),\"Выберите стороны договора\")","v":0}]
[{"$f":"IFERROR(HLOOKUP(VLOOKUP(TRUE,Справочник!$A$1:$B$2,2,FALSE),Справочник!C:D,ROW(A48)+1,FALSE),\"Выберите стороны договора\")","v":0}]
[{"$f":"IFERROR(HLOOKUP(VLOOKUP(TRUE,Справочник!$A$1:$B$2,2,FALSE),Справочник!C:D,ROW(A49)+1,FALSE),\"Выберите стороны договора\")","v":0}]
[{"$f":"IFERROR(HLOOKUP(VLOOKUP(TRUE,Справочник!$A$1:$B$2,2,FALSE),Справочник!C:D,ROW(A50)+1,FALSE),\"Выберите стороны договора\")","v":0}]
[{"$f":"IFERROR(HLOOKUP(VLOOKUP(TRUE,Справочник!$A$1:$B$2,2,FALSE),Справочник!C:D,ROW(A51)+1,FALSE),\"Выберите стороны договора\")","v":0}]

{"sheet":"Лист3","index":2,"n_rows":0,"n_cols":0,"rows_kept":0,"cut":false,"hidden":false,"merged":[]}